[Event "FIDE Grand Swiss 2023"]
[Site "Villa Marina, Douglas, Isle of Man"]
[Date "2023.10.28"]
[Round "4.14"]
[White "Vidit, Santosh Gujrathi"]
[Black "Shirov, Alexei"]
[Result "1-0"]
[WhiteElo "2716"]
[BlackElo "2655"]
[EventDate "2023.10.25"]
[ECO "D12"]
[PlyCount "69"]
[BlackFideId "2209390"]
[TimeControl "40/100 + 20/50 + 15 + 30s/move"]
[WhiteFideId "5029465"]

1.Nf3 {[%clk 01:40:16] [%emt 00:00:43]} 1...d5 {[%clk 01:40:09] [%emt 00:00:52]} 
2.d4 {[%clk 01:40:36] [%emt 00:00:10]} 2...Nf6 {[%clk 01:40:19] [%emt 00:00:20]} 
3.c4 {[%clk 01:40:56] [%emt 00:00:10]} 3...c6 {[%clk 01:40:44] [%emt 00:00:05]} 
4.e3 {[%clk 01:41:10] [%emt 00:00:16]} 4...Bf5 {[%clk 01:41:08] [%emt 00:00:06]} 
5.Nc3 {[%clk 01:41:27] [%emt 00:00:13]} 5...e6 {[%clk 01:41:28] [%emt 00:00:10]} 
6.Nh4 {[%clk 01:41:44] [%emt 00:00:12]} 6...Be4 {[%clk 01:41:48] [%emt
00:00:10]} 7.f3 {[%clk 01:42:00] [%emt 00:00:14]} 7...Bg6 {[%clk 01:41:45] [%emt
00:00:33]} 8.Bd2 {[%clk 01:42:11] [%emt 00:00:19]} 8...Be7 {[%clk 01:39:06]
[%emt 00:03:10]} 9.Nxg6 {[%clk 01:42:14] [%emt 00:00:28]} 9...hxg6 {[%clk
01:39:23] [%emt 00:00:12]} 10.Qc2 {[%clk 01:42:23] [%emt 00:00:21]} 10...dxc4 
{[%clk 01:03:22] [%emt 00:36:30]} 11.Bxc4 {[%clk 01:40:01] [%emt 00:02:52]} 
11...Nbd7 {[%clk 01:03:32] [%emt 00:00:20]} 12.O-O-O {[%clk 01:38:36] [%emt
00:01:55]} 12...a6 {[%clk 01:03:03] [%emt 00:01:00]} 13.Kb1 {[%clk 01:20:36]
[%emt 00:18:31]} 13...c5 {[%clk 00:53:30] [%emt 00:10:02]} 14.g4 {[%clk
01:20:20] [%emt 00:00:46]} 14...cxd4 {[%clk 00:52:07] [%emt 00:01:53]} 15.exd4 
{[%clk 01:20:38] [%emt 00:00:11]} 15...Nb6 {[%clk 00:44:35] [%emt 00:08:02]} 
16.Bb3 {[%clk 01:20:32] [%emt 00:00:37]} 16...Rc8 {[%clk 00:39:55] [%emt
00:05:10]} 17.Qd3 {[%clk 01:20:15] [%emt 00:00:46]} 17...Nfd5 {[%clk 00:22:50]
[%emt 00:17:35]} 18.Nxd5 {[%clk 01:01:10] [%emt 00:19:36]} 18...Nxd5 {[%clk
00:23:06] [%emt 00:00:14]} 19.f4 {[%clk 01:01:28] [%emt 00:00:12]} 19...Qd7 
{[%clk 00:20:53] [%emt 00:02:43]} 20.f5 {[%clk 00:43:26] [%emt 00:18:32]} 
20...gxf5 {[%clk 00:21:01] [%emt 00:00:21]} 21.gxf5 {[%clk 00:43:52] [%emt
00:00:05]} 21...exf5 {[%clk 00:21:08] [%emt 00:00:23]} 22.Rde1 {[%clk 00:44:02]
[%emt 00:00:20]} 22...Kf8 {[%clk 00:16:11] [%emt 00:05:26]} 23.Re5 {[%clk
00:43:04] [%emt 00:01:28]} 23...Nf6 {[%clk 00:16:23] [%emt 00:00:18]} 24.Rxf5 
{[%clk 00:42:13] [%emt 00:01:22]} 24...Rh4 {[%clk 00:15:09] [%emt 00:01:43]} 
25.Bc3 {[%clk 00:37:50] [%emt 00:04:54]} 25...b5 {[%clk 00:14:43] [%emt
00:00:56]} 26.a3 {[%clk 00:33:29] [%emt 00:04:51]} 26...Bxa3 {[%clk 00:14:53]
[%emt 00:00:19]} 27.Rxf6 {[%clk 00:29:16] [%emt 00:04:44]} 27...gxf6 {[%clk
00:11:25] [%emt 00:03:57]} 28.bxa3 {[%clk 00:27:37] [%emt 00:02:10]} 28...Rh3 
{[%clk 00:10:38] [%emt 00:01:16]} 29.Bb4+ {[%clk 00:27:39] [%emt 00:00:29]} 
29...Kg7 {[%clk 00:11:04] [%emt 00:00:04]} 30.Rg1+ {[%clk 00:26:25] [%emt
00:01:44]} 30...Kh8 {[%clk 00:11:16] [%emt 00:00:18]} 31.Rg3 {[%clk 00:25:42]
[%emt 00:01:13]} 31...Rxg3 {[%clk 00:09:34] [%emt 00:02:12]} 32.hxg3 {[%clk
00:23:07] [%emt 00:03:05]} 32...Kg7 {[%clk 00:07:08] [%emt 00:02:55]} 33.Bc2 
{[%clk 00:20:00] [%emt 00:03:37]} 33...Rh8 {[%clk 00:04:43] [%emt 00:02:55]} 
34.d5 {[%clk 00:18:59] [%emt 00:01:31]} 34...Qa7 {[%clk 00:04:37] [%emt
00:00:36]} 35.Qf3 {[%clk 00:16:41] [%emt 00:02:49]} 1-0

[Event "FIDE Grand Swiss 2023"]
[Site "Villa Marina, Douglas, Isle of Man"]
[Date "2023.10.28"]
[Round "4.15"]
[White "Vitiugov, Nikita"]
[Black "Aravindh, Chithambaram Vr."]
[Result "1/2-1/2"]
[WhiteElo "2711"]
[BlackElo "2649"]
[EventDate "2023.10.25"]
[ECO "D12"]
[PlyCount "99"]
[BlackFideId "5072786"]
[TimeControl "40/100 + 20/50 + 15 + 30s/move"]
[WhiteFideId "4152956"]

1.d4 {[%clk 01:40:49] [%emt 00:00:10]} 1...d5 {[%clk 01:40:50] [%emt 00:00:10]} 
2.c4 {[%clk 01:41:10] [%emt 00:00:10]} 2...c6 {[%clk 01:41:08] [%emt 00:00:11]} 
3.Nf3 {[%clk 01:41:21] [%emt 00:00:19]} 3...Nf6 {[%clk 01:41:27] [%emt
00:00:10]} 4.e3 {[%clk 01:40:23] [%emt 00:01:30]} 4...Bf5 {[%clk 01:41:45] [%emt
00:00:10]} 5.Nc3 {[%clk 01:40:23] [%emt 00:00:32]} 5...e6 {[%clk 01:42:06] [%emt
00:00:07]} 6.Nh4 {[%clk 01:40:31] [%emt 00:00:24]} 6...Bg6 {[%clk 01:41:50]
[%emt 00:00:44]} 7.Nxg6 {[%clk 01:39:41] [%emt 00:01:22]} 7...hxg6 {[%clk
01:42:11] [%emt 00:00:08]} 8.Bd2 {[%clk 01:39:59] [%emt 00:00:12]} 8...Nbd7 
{[%clk 01:42:22] [%emt 00:00:19]} 9.cxd5 {[%clk 01:39:17] [%emt 00:01:13]} 
9...exd5 {[%clk 01:39:40] [%emt 00:03:11]} 10.Qc2 {[%clk 01:39:03] [%emt
00:00:45]} 10...Rc8 {[%clk 01:05:55] [%emt 00:34:15]} 11.O-O-O {[%clk 01:27:53]
[%emt 00:11:40]} 11...Bb4 {[%clk 01:04:25] [%emt 00:01:59]} 12.f3 {[%clk
01:24:41] [%emt 00:03:42]} 12...O-O {[%clk 01:03:50] [%emt 00:01:05]} 13.g4 
{[%clk 01:19:07] [%emt 00:06:04]} 13...c5 {[%clk 00:59:36] [%emt 00:04:44]} 
14.Kb1 {[%clk 01:17:50] [%emt 00:01:48]} 14...Re8 {[%clk 00:40:19] [%emt
00:19:47]} 15.g5 {[%clk 00:56:13] [%emt 00:22:07]} 15...cxd4 {[%clk 00:36:15]
[%emt 00:04:33]} 16.exd4 {[%clk 00:56:24] [%emt 00:00:19]} 16...Nh5 {[%clk
00:36:37] [%emt 00:00:07]} 17.Rg1 {[%clk 00:54:42] [%emt 00:02:13]} 17...Nb6 
{[%clk 00:30:49] [%emt 00:06:17]} 18.Bb5 {[%clk 00:44:33] [%emt 00:10:40]} 
18...Re6 {[%clk 00:26:02] [%emt 00:05:17]} 19.Rde1 {[%clk 00:38:12] [%emt
00:06:52]} 19...Bxc3 {[%clk 00:16:58] [%emt 00:09:33]} 20.bxc3 {[%clk 00:36:36]
[%emt 00:02:06]} 20...Qd6 {[%clk 00:13:20] [%emt 00:04:08]} 21.Rxe6 {[%clk
00:34:31] [%emt 00:02:35]} 21...Qxe6 {[%clk 00:13:47] [%emt 00:00:04]} 22.Re1 
{[%clk 00:29:17] [%emt 00:05:44]} 22...Qh3 {[%clk 00:11:59] [%emt 00:02:17]} 
23.Re7 {[%clk 00:28:10] [%emt 00:01:37]} 23...Qxf3 {[%clk 00:09:23] [%emt
00:03:07]} 24.Rxb7 {[%clk 00:24:03] [%emt 00:04:37]} 24...Nf4 {[%clk 00:09:41]
[%emt 00:00:11]} 25.Bxf4 {[%clk 00:15:33] [%emt 00:09:00]} 25...Qxf4 {[%clk
00:10:06] [%emt 00:00:05]} 26.a4 {[%clk 00:15:34] [%emt 00:00:30]} 26...Qf3 
{[%clk 00:05:11] [%emt 00:05:24]} 27.Kb2 {[%clk 00:14:13] [%emt 00:01:52]} 
27...Nc4+ {[%clk 00:04:28] [%emt 00:01:13]} 28.Bxc4 {[%clk 00:12:59] [%emt
00:01:44]} 28...dxc4 {[%clk 00:04:54] [%emt 00:00:04]} 29.Rb5 {[%clk 00:10:53]
[%emt 00:02:36]} 29...a6 {[%clk 00:02:49] [%emt 00:02:35]} 30.Rc5 {[%clk
00:10:15] [%emt 00:01:08]} 30...Re8 {[%clk 00:02:34] [%emt 00:00:42]} 31.Ka3 
{[%clk 00:06:05] [%emt 00:04:43]} 31...Qd3 {[%clk 00:02:21] [%emt 00:00:42]} 
32.Qb2 {[%clk 00:06:14] [%emt 00:00:21]} 32...Re1 {[%clk 00:01:40] [%emt
00:01:11]} 33.Qb8+ {[%clk 00:06:04] [%emt 00:00:42]} 33...Kh7 {[%clk 00:02:06]
[%emt 00:00:03]} 34.Qg3 {[%clk 00:06:30] [%emt 00:00:03]} 34...Re8 {[%clk
00:01:03] [%emt 00:01:33]} 35.Kb4 {[%clk 00:06:42] [%emt 00:00:19]} 35...Qb1+ 
{[%clk 00:00:34] [%emt 00:00:59]} 36.Ka5 {[%clk 00:06:53] [%emt 00:00:19]} 
36...Kg8 {[%clk 00:00:34] [%emt 00:00:29]} 37.Qc7 {[%clk 00:03:13] [%emt
00:04:11]} 37...Qc1 {[%clk 00:00:37] [%emt 00:00:26]} 38.Rxc4 {[%clk 00:03:03]
[%emt 00:00:41]} 38...Qxg5+ {[%clk 00:01:03] [%emt 00:00:04]} 39.Rc5 {[%clk
00:03:26] [%emt 00:00:07]} 39...Qd2 {[%clk 00:00:33] [%emt 00:00:59]} 40.Qd7 
{[%clk 00:03:22] [%emt 00:00:35]} 40...Rf8 {[%clk 00:00:34] [%emt 00:00:28]} 
41.Rc8 {[%clk 00:47:35] [%emt 00:06:17]} 41...Rxc8 {[%clk 00:49:34] [%emt
00:01:30]} 42.Qxc8+ {[%clk 00:48:00] [%emt 00:00:06]} 42...Kh7 {[%clk 00:50:00]
[%emt 00:00:03]} 43.Qh3+ {[%clk 00:46:23] [%emt 00:02:07]} 43...Kg8 {[%clk
00:49:24] [%emt 00:01:06]} 44.Kxa6 {[%clk 00:34:46] [%emt 00:12:08]} 44...Qe2+ 
{[%clk 00:48:59] [%emt 00:00:54]} 45.Kb6 {[%clk 00:30:46] [%emt 00:04:30]} 
45...f5 {[%clk 00:49:22] [%emt 00:00:07]} 46.Qg3 {[%clk 00:23:15] [%emt
00:08:01]} 46...Qb2+ {[%clk 00:49:29] [%emt 00:00:23]} 47.Ka7 {[%clk 00:17:12]
[%emt 00:06:34]} 47...Qa2 {[%clk 00:46:01] [%emt 00:03:57]} 48.Qxg6 {[%clk
00:11:39] [%emt 00:06:03]} 48...Qxa4+ {[%clk 00:43:58] [%emt 00:02:33]} 49.Kb7 
{[%clk 00:10:38] [%emt 00:01:32]} 49...Qb3+ {[%clk 00:40:39] [%emt 00:03:48]} 
50.Ka6 {[%clk 00:09:16] [%emt 00:01:53]} 1/2-1/2

[Event "FIDE Grand Swiss 2023"]
[Site "Villa Marina, Douglas, Isle of Man"]
[Date "2023.10.28"]
[Round "4.16"]
[White "Najer, Evgeniy"]
[Black "Maghsoodloo, Parham"]
[Result "1-0"]
[WhiteElo "2648"]
[BlackElo "2707"]
[EventDate "2023.10.25"]
[ECO "B67"]
[PlyCount "101"]
[BlackFideId "12539929"]
[TimeControl "40/100 + 20/50 + 15 + 30s/move"]
[WhiteFideId "4118987"]

1.e4 {[%clk 01:40:53] [%emt 00:00:06]} 1...c5 {[%clk 01:40:52] [%emt 00:00:09]} 
2.Nf3 {[%clk 01:41:01] [%emt 00:00:21]} 2...d6 {[%clk 01:41:16] [%emt 00:00:06]} 
3.d4 {[%clk 01:41:24] [%emt 00:00:07]} 3...cxd4 {[%clk 01:41:42] [%emt
00:00:04]} 4.Nxd4 {[%clk 01:41:50] [%emt 00:00:04]} 4...Nf6 {[%clk 01:42:09]
[%emt 00:00:04]} 5.Nc3 {[%clk 01:42:13] [%emt 00:00:06]} 5...Nc6 {[%clk
01:42:36] [%emt 00:00:04]} 6.Bg5 {[%clk 01:41:52] [%emt 00:00:49]} 6...e6 
{[%clk 01:43:01] [%emt 00:00:06]} 7.Qd2 {[%clk 01:37:57] [%emt 00:04:25]} 
7...a6 {[%clk 01:43:25] [%emt 00:00:07]} 8.O-O-O {[%clk 01:36:52] [%emt
00:01:34]} 8...Bd7 {[%clk 01:43:51] [%emt 00:00:05]} 9.Kb1 {[%clk 01:36:06]
[%emt 00:01:16]} 9...Nxd4 {[%clk 01:43:54] [%emt 00:00:27]} 10.Qxd4 {[%clk
01:36:30] [%emt 00:00:05]} 10...Be7 {[%clk 01:44:08] [%emt 00:00:16]} 11.Be2 
{[%clk 01:29:18] [%emt 00:07:42]} 11...Rc8 {[%clk 01:35:22] [%emt 00:09:16]} 
12.f4 {[%clk 01:26:26] [%emt 00:03:22]} 12...Bc6 {[%clk 01:24:22] [%emt
00:11:30]} 13.Bf3 {[%clk 01:23:45] [%emt 00:03:10]} 13...O-O {[%clk 01:20:23]
[%emt 00:04:30]} 14.f5 {[%clk 00:54:41] [%emt 00:29:34]} 14...h6 {[%clk
01:07:54] [%emt 00:12:59]} 15.Bc1 {[%clk 00:51:44] [%emt 00:03:28]} 15...exf5 
{[%clk 01:04:52] [%emt 00:03:31]} 16.exf5 {[%clk 00:47:08] [%emt 00:05:05]} 
16...Qa5 {[%clk 01:00:23] [%emt 00:05:00]} 17.Bxc6 {[%clk 00:42:54] [%emt
00:04:44]} 17...Rxc6 {[%clk 00:56:27] [%emt 00:04:27]} 18.Rhe1 {[%clk 00:43:08]
[%emt 00:00:15]} 18...Bd8 {[%clk 00:54:40] [%emt 00:02:17]} 19.g4 {[%clk
00:30:39] [%emt 00:12:59]} 19...Bb6 {[%clk 00:41:26] [%emt 00:13:45]} 20.Qd3 
{[%clk 00:30:27] [%emt 00:00:42]} 20...Bf2 {[%clk 00:40:47] [%emt 00:01:09]} 
21.Re7 {[%clk 00:24:06] [%emt 00:06:51]} 21...Bh4 {[%clk 00:40:22] [%emt
00:00:54]} 22.Rxb7 {[%clk 00:22:37] [%emt 00:01:59]} 22...Re8 {[%clk 00:40:37]
[%emt 00:00:16]} 23.h3 {[%clk 00:19:33] [%emt 00:03:33]} 23...Qe5 {[%clk
00:35:07] [%emt 00:06:00]} 24.a3 {[%clk 00:18:06] [%emt 00:01:57]} 24...Rec8 
{[%clk 00:31:41] [%emt 00:03:56]} 25.Rb4 {[%clk 00:16:52] [%emt 00:01:44]} 
25...d5 {[%clk 00:30:16] [%emt 00:01:55]} 26.Bf4 {[%clk 00:13:00] [%emt
00:04:22]} 26...Qe7 {[%clk 00:27:15] [%emt 00:03:31]} 27.Nxd5 {[%clk 00:09:42]
[%emt 00:03:48]} 27...Nxd5 {[%clk 00:27:40] [%emt 00:00:05]} 28.Qxd5 {[%clk
00:10:10] [%emt 00:00:03]} 28...Rxc2 {[%clk 00:26:55] [%emt 00:01:14]} 29.Rb7 
{[%clk 00:09:20] [%emt 00:01:20]} 29...Qe8 {[%clk 00:26:25] [%emt 00:01:00]} 
30.Qd7 {[%clk 00:08:21] [%emt 00:01:30]} 30...Rf2 {[%clk 00:26:30] [%emt
00:00:24]} 31.Be5 {[%clk 00:08:04] [%emt 00:00:47]} 31...a5 {[%clk 00:18:53]
[%emt 00:08:07]} 32.Qxe8+ {[%clk 00:07:12] [%emt 00:01:22]} 32...Rxe8 {[%clk
00:19:18] [%emt 00:00:05]} 33.Bc3 {[%clk 00:07:40] [%emt 00:00:03]} 33...a4 
{[%clk 00:19:44] [%emt 00:00:04]} 34.Ra7 {[%clk 00:06:53] [%emt 00:01:16]} 
34...Rh2 {[%clk 00:18:12] [%emt 00:02:02]} 35.Rxa4 {[%clk 00:05:20] [%emt
00:02:04]} 35...Rxh3 {[%clk 00:18:36] [%emt 00:00:06]} 36.Rb4 {[%clk 00:05:26]
[%emt 00:00:23]} 36...Ra8 {[%clk 00:15:50] [%emt 00:03:16]} 37.a4 {[%clk
00:05:27] [%emt 00:00:29]} 37...h5 {[%clk 00:14:11] [%emt 00:02:09]} 38.gxh5 
{[%clk 00:05:10] [%emt 00:00:47]} 38...Bg5 {[%clk 00:14:19] [%emt 00:00:22]} 
39.Rd7 {[%clk 00:03:07] [%emt 00:02:33]} 39...Rxh5 {[%clk 00:13:48] [%emt
00:01:02]} 40.a5 {[%clk 00:00:57] [%emt 00:02:39]} 40...Bd8 {[%clk 00:09:37]
[%emt 00:04:41]} 41.a6 {[%clk 00:28:35] [%emt 00:22:52]} 41...Ba5 {[%clk
00:58:03] [%emt 00:02:04]} 42.Rb5 {[%clk 00:27:26] [%emt 00:01:38]} 42...Rh1+ 
{[%clk 00:55:56] [%emt 00:02:38]} 43.Ka2 {[%clk 00:23:45] [%emt 00:04:11]} 
43...Bxc3 {[%clk 00:55:35] [%emt 00:00:51]} 44.a7 {[%clk 00:24:05] [%emt
00:00:10]} 44...Kh7 {[%clk 00:49:53] [%emt 00:06:12]} 45.bxc3 {[%clk 00:18:06]
[%emt 00:06:28]} 45...Rh2+ {[%clk 00:48:49] [%emt 00:01:34]} 46.Kb3 {[%clk
00:17:48] [%emt 00:00:49]} 46...Rh1 {[%clk 00:49:14] [%emt 00:00:06]} 47.Rbb7 
{[%clk 00:16:51] [%emt 00:01:26]} 47...Rb1+ {[%clk 00:49:06] [%emt 00:00:38]} 
48.Kc4 {[%clk 00:16:54] [%emt 00:00:27]} 48...Rxb7 {[%clk 00:49:31] [%emt
00:00:05]} 49.Rxb7 {[%clk 00:17:20] [%emt 00:00:03]} 49...g5 {[%clk 00:49:57]
[%emt 00:00:05]} 50.fxg6+ {[%clk 00:14:28] [%emt 00:03:22]} 50...Kxg6 {[%clk
00:50:21] [%emt 00:00:06]} 51.Kb5 {[%clk 00:14:47] [%emt 00:00:10]} 1-0

[Event "FIDE Grand Swiss 2023"]
[Site "Villa Marina, Douglas, Isle of Man"]
[Date "2023.10.28"]
[Round "4.17"]
[White "Korobov, Anton"]
[Black "Deac, Bogdan-Daniel"]
[Result "1/2-1/2"]
[WhiteElo "2658"]
[BlackElo "2701"]
[EventDate "2023.10.25"]
[ECO "C54"]
[PlyCount "81"]
[BlackFideId "1226380"]
[TimeControl "40/100 + 20/50 + 15 + 30s/move"]
[WhiteFideId "14105730"]

1.e4 {[%clk 01:40:57] [%emt 00:00:02]} 1...e5 {[%clk 01:40:56] [%emt 00:00:05]} 
2.Nf3 {[%clk 01:41:21] [%emt 00:00:06]} 2...Nc6 {[%clk 01:41:24] [%emt
00:00:02]} 3.Bc4 {[%clk 01:41:42] [%emt 00:00:08]} 3...Nf6 {[%clk 01:41:44]
[%emt 00:00:11]} 4.d3 {[%clk 01:42:04] [%emt 00:00:07]} 4...Bc5 {[%clk 01:42:10]
[%emt 00:00:05]} 5.c3 {[%clk 01:42:23] [%emt 00:00:10]} 5...d6 {[%clk 01:41:20]
[%emt 00:01:20]} 6.Bg5 {[%clk 01:42:22] [%emt 00:00:31]} 6...h6 {[%clk 01:41:17]
[%emt 00:00:33]} 7.Bh4 {[%clk 01:42:45] [%emt 00:00:06]} 7...a6 {[%clk 01:37:58]
[%emt 00:03:51]} 8.Nbd2 {[%clk 01:42:23] [%emt 00:00:52]} 8...Ba7 {[%clk
01:37:04] [%emt 00:01:24]} 9.a4 {[%clk 01:38:32] [%emt 00:04:21]} 9...Qe7 
{[%clk 01:33:42] [%emt 00:03:52]} 10.O-O {[%clk 01:37:29] [%emt 00:01:32]} 
10...Be6 {[%clk 01:31:02] [%emt 00:03:11]} 11.b4 {[%clk 01:32:45] [%emt
00:05:14]} 11...O-O {[%clk 01:24:41] [%emt 00:06:51]} 12.Re1 {[%clk 01:30:06]
[%emt 00:03:08]} 12...Bxc4 {[%clk 01:22:25] [%emt 00:02:47]} 13.Nxc4 {[%clk
01:27:37] [%emt 00:02:58]} 13...Qe6 {[%clk 01:12:57] [%emt 00:09:59]} 14.b5 
{[%clk 01:23:13] [%emt 00:04:54]} 14...Nb8 {[%clk 00:52:22] [%emt 00:21:05]} 
15.Bxf6 {[%clk 01:11:52] [%emt 00:11:51]} 15...Qxf6 {[%clk 00:51:26] [%emt
00:01:25]} 16.Rb1 {[%clk 01:09:33] [%emt 00:02:49]} 16...Nd7 {[%clk 00:48:17]
[%emt 00:03:40]} 17.bxa6 {[%clk 00:57:04] [%emt 00:12:58]} 17...bxa6 {[%clk
00:48:46] [%emt 00:00:02]} 18.Na5 {[%clk 00:54:36] [%emt 00:02:57]} 18...Qe6 
{[%clk 00:37:51] [%emt 00:11:26]} 19.Nc6 {[%clk 00:52:35] [%emt 00:02:31]} 
19...Nb8 {[%clk 00:38:00] [%emt 00:00:20]} 20.Nxa7 {[%clk 00:51:00] [%emt
00:02:05]} 20...Rxa7 {[%clk 00:38:27] [%emt 00:00:03]} 21.d4 {[%clk 00:49:50]
[%emt 00:01:40]} 21...Nd7 {[%clk 00:38:44] [%emt 00:00:13]} 22.a5 {[%clk
00:41:22] [%emt 00:08:58]} 22...Qc4 {[%clk 00:37:02] [%emt 00:02:13]} 23.Qd2 
{[%clk 00:33:38] [%emt 00:08:13]} 23...c5 {[%clk 00:34:14] [%emt 00:03:18]} 
24.dxe5 {[%clk 00:25:14] [%emt 00:08:55]} 24...Nxe5 {[%clk 00:27:37] [%emt
00:07:08]} 25.Nh4 {[%clk 00:22:03] [%emt 00:03:40]} 25...Rd8 {[%clk 00:19:13]
[%emt 00:08:54]} 26.Nf5 {[%clk 00:19:34] [%emt 00:02:59]} 26...Qe6 {[%clk
00:17:43] [%emt 00:02:00]} 27.h4 {[%clk 00:13:17] [%emt 00:06:47]} 27...Qf6 
{[%clk 00:06:48] [%emt 00:11:26]} 28.f4 {[%clk 00:06:52] [%emt 00:06:54]} 
28...Ng4 {[%clk 00:06:30] [%emt 00:00:48]} 29.g3 {[%clk 00:03:32] [%emt
00:03:50]} 29...d5 {[%clk 00:06:23] [%emt 00:00:38]} 30.Ne3 {[%clk 00:01:43]
[%emt 00:02:19]} 30...Nxe3 {[%clk 00:00:55] [%emt 00:05:58]} 31.Qxe3 {[%clk
00:02:07] [%emt 00:00:05]} 31...d4 {[%clk 00:01:11] [%emt 00:00:14]} 32.cxd4 
{[%clk 00:02:18] [%emt 00:00:19]} 32...cxd4 {[%clk 00:01:38] [%emt 00:00:03]} 
33.Qd3 {[%clk 00:02:19] [%emt 00:00:29]} 33...Rc7 {[%clk 00:01:45] [%emt
00:00:24]} 34.e5 {[%clk 00:02:17] [%emt 00:00:31]} 34...Qc6 {[%clk 00:00:39]
[%emt 00:01:36]} 35.Rbd1 {[%clk 00:01:43] [%emt 00:01:04]} 35...Qc3 {[%clk
00:00:34] [%emt 00:00:35]} 36.e6 {[%clk 00:01:08] [%emt 00:01:05]} 36...Qxd3 
{[%clk 00:00:31] [%emt 00:00:33]} 37.Rxd3 {[%clk 00:01:28] [%emt 00:00:10]} 
37...fxe6 {[%clk 00:00:59] [%emt 00:00:02]} 38.Rxe6 {[%clk 00:01:39] [%emt
00:00:20]} 38...Rc3 {[%clk 00:01:23] [%emt 00:00:05]} 39.Rxc3 {[%clk 00:01:32]
[%emt 00:00:37]} 39...dxc3 {[%clk 00:01:50] [%emt 00:00:04]} 40.Rc6 {[%clk
00:01:58] [%emt 00:00:04]} 40...Rd5 {[%clk 00:02:06] [%emt 00:00:14]} 41.Rxc3 
{[%clk 00:02:17] [%emt 00:00:11]} 1/2-1/2